fUST/lending_fUST_20251231
["ID","MTS","AMOUNT","RATE_DAILY","PERIOD"]
[400156300,1767159054783,-151.0,0.00027397,7]
[400156301,1767159054792,-151.0,0.00027397,7]
[400156302,1767159054802,-151.0,0.00027397,7]
[400156303,1767159054811,-151.0,0.00027397,7]
[400156304,1767159054820,-151.0,0.00027397,7]
[400156305,1767159054830,-151.0,0.00027397,7]
[400156306,1767159054839,-151.0,0.00027397,7]
[400156307,1767159054849,-151.0,0.00027397,7]
[400156308,1767159054858,-151.0,0.00027397,7]
[400156309,1767159054870,-643.406088,0.00027397,7]
[400156310,1767159054879,-225.531024,0.00027397,7]
[400156311,1767159054889,-643.406088,0.00027397,7]
[400156312,1767159054899,-643.406088,0.00027397,7]
[400156313,1767159054908,-643.406088,0.00027397,7]
[400156314,1767159054918,-643.406088,0.00027397,7]
[400156315,1767159054928,-643.406088,0.00027397,7]
[400156316,1767159054938,-643.406088,0.00027397,7]
[400156317,1767159054947,-643.406088,0.00027397,7]
[400156318,1767159054957,-643.406088,0.00027397,7]
[400156319,1767159054966,-643.406088,0.00027397,7]
[400156320,1767159054976,-643.406088,0.00027397,7]
[400156321,1767159054986,-643.406088,0.00027397,7]
[400156322,1767159054996,-643.406088,0.00027397,7]
[400156323,1767159055006,-643.406088,0.00027397,7]
[400156324,1767159055016,-643.406088,0.00027397,7]
[400156325,1767159055029,-643.406088,0.00027397,7]
[400156326,1767159055039,-643.406088,0.00027397,7]
[400156327,1767159055048,-2596.936769,0.00027397,7]
[400156328,1767159055058,-643.406088,0.00027397,7]
[400156329,1767159055069,-2596.936769,0.00027397,7]
[400156330,1767159055079,-643.406088,0.00027397,7]
[400156331,1767159055091,-643.406079,0.00027397,7]
[400156332,1767159055103,-2596.936769,0.00027397,7]
[400156333,1767159055113,-2596.936769,0.00027397,7]
[400156334,1767159055122,-2596.936769,0.00027397,7]
[400156335,1767159055132,-2596.936769,0.00027397,7]
[400156336,1767159055142,-2596.936769,0.00027397,7]
[400156337,1767159055151,-2596.936769,0.00027397,7]
[400156338,1767159055161,-576.749097,0.00027397,7]
[400156339,1767159055170,-2596.936769,0.00027397,7]
[400156340,1767159055180,-576.749097,0.00027397,7]
[400156341,1767159055190,-2596.936769,0.00027397,7]
[400156342,1767159055200,-576.749097,0.00027397,7]
[400156343,1767159055209,-2596.936769,0.00027397,7]
[400156344,1767159055219,-152.36606131,0.00027397,5]
[400156345,1767159055229,-150.58382148,0.00027397,5]
[400156346,1767159055238,-1000.0,0.00027421,7]
[400156347,1767159055249,-184.1677213,0.00027425,30]
[400156348,1767159055258,-184.1677213,0.00027425,30]
[400156349,1767159055268,-1219.355547,0.0002746,5]
[400156350,1767159055278,-151.0,0.0002748,7]
[400156351,1767159055287,-151.0,0.0002748,7]
[400156352,1767159055297,-151.0,0.0002748,7]
[400156353,1767159055306,-151.0,0.0002748,7]
[400156354,1767159055316,-151.0,0.0002748,7]
[400156355,1767159055325,-151.0,0.0002748,7]
[400156356,1767159055335,-151.0,0.0002748,7]
[400156357,1767159055344,-151.0,0.0002748,7]
[400156358,1767159055354,-1000.0,0.0002748,5]
[400156359,1767159055363,-162.4,0.000275,7]
[400156360,1767159055372,-14885.98,0.000275,2]
[400156361,1767159055383,-279.119257,0.000275,7]
[400156362,1767159055392,-151.0,0.000275,7]
[400156363,1767159055402,-242.012831,0.000275,7]
[400156364,1767159055411,-151.0,0.000275,7]
[400156365,1767159055421,-151.0,0.000275,7]
[400156366,1767159055430,-151.0,0.000275,7]
[400156367,1767159055440,-151.0,0.000275,7]
[400156368,1767159055450,-1000.0,0.000275,5]
[400156369,1767159055459,-1000.0,0.0002752,5]
[400156370,1767159055469,-5000.0,0.00027524,15]
[400156371,1767159055479,-1000.0,0.00027527,7]
[400156372,1767159055489,-160.0,0.00027527,16]
[400156373,1767159055499,-1000.0,0.0002754,5]
[400156374,1767159055508,-2394.17213278,0.00027558,2]
[400156375,1767159055518,-1000.0,0.0002756,5]
[400156376,1767159055527,-1000.0,0.0002758,5]
[400156377,1767159055536,-276.88984516,0.00027583,2]
[400156378,1767159055546,-1640.515759,0.000276,5]
[400156379,1767159055555,-1000.0,0.000276,5]
[400156380,1767159055566,-1041.66666667,0.000276,30]
[400156381,1767159055575,-1000.0,0.0002762,5]
[400156382,1767159055584,-1000.0,0.0002762,5]
[400156383,1767159055594,-726.0,0.00027622,3]
[400156384,1767159055616,-4200.02066496,0.00027638,2]
[400156385,1767159055630,-1000.0,0.0002764,5]
[400156386,1767159055643,-1000.0,0.0002764,5]
[400156387,1767159055652,-1000.0,0.0002766,5]
[400156388,1767159055662,-1000.0,0.0002766,5]
[400156389,1767159055671,-793.64,0.00027671,2]
[400156390,1767159055681,-3532.14,0.00027671,2]
[400156391,1767159055690,-1348.54,0.00027671,2]
[400156392,1767159055700,-153.0,0.00027671,30]
[400156393,1767159055710,-1000.0,0.0002768,5]
[400156394,1767159055719,-1000.0,0.0002768,5]
[400156395,1767159055729,-1203.225924,0.0002768,5]
[400156396,1767159055738,-1000.0,0.00027687,7]
[400156397,1767159055749,-5000.0,0.00027699,10]
[400156398,1767159055758,-24425.5686256,0.000277,7]
[400156399,1767159055767,-1000.0,0.000277,5]
[400156400,1767159055777,-1000.0,0.000277,5]
[400156401,1767159055787,-1000.0,0.000277,5]
[400156402,1767159055796,-150.0,0.000277,2]
[400156403,1767159055805,-150.0,0.000277,10]
[400156404,1767159055815,-898.577244,0.000277,7]
[400156405,1767159055824,-898.577244,0.000277,7]
[400156406,1767159055834,-898.577244,0.000277,7]
[400156407,1767159055843,-898.577242,0.000277,7]
[400156408,1767159055852,-805.861522,0.000277,7]
[400156409,1767159055862,-805.861522,0.000277,7]
[400156410,1767159055871,-151.0,0.000277,7]
[400156411,1767159055880,-805.861522,0.000277,7]
[400156412,1767159055890,-151.0,0.000277,7]
[400156413,1767159055899,-805.861521,0.000277,7]
[400156414,1767159055909,-1549.100689,0.000277,7]
[400156415,1767159055920,-1549.100689,0.000277,7]
[400156416,1767159055930,-1549.100689,0.000277,7]
[400156417,1767159055940,-1549.100685,0.000277,7]
[400156418,1767159055950,-193.357014,0.000277,7]
[400156419,1767159055959,-193.357014,0.000277,7]
[400156420,1767159055969,-193.357014,0.000277,7]
[400156421,1767159055979,-193.357023,0.000277,7]
[400156422,1767159056084,-2394.17213278,0.00027717,2]
[400156423,1767159056097,-1000.0,0.0002774,7]
[400156424,1767159056108,-800.0,0.00027741,2]
[400156425,1767159056118,-303.4572356,0.00027753,30]
[400156426,1767159056127,-193.3811029,0.00027753,30]
[400156427,1767159056137,-800.0,0.00027785,2]
[400156428,1767159056147,-1041.66666667,0.000278,7]
[400156429,1767159056157,-193.3811029,0.00027808,30]
[400156430,1767159056167,-1209.4333455,0.00027808,30]
[400156431,1767159056176,-184.1677213,0.00027808,30]
[400156432,1767159056186,-303.4572356,0.00027808,30]
[400156433,1767159056196,-303.4572356,0.00027808,30]
[400156434,1767159056205,-184.1677213,0.00027808,30]
[400156435,1767159056215,-193.3811029,0.00027808,30]
[400156436,1767159056225,-383.1738515,0.00027828,30]
[400156437,1767159056234,-376.3220282,0.00027828,30]
[400156438,1767159056244,-376.3220282,0.00027828,30]
[400156439,1767159056254,-752.5756112,0.00027828,30]
[400156440,1767159056263,-376.3998898,0.00027828,30]
[400156441,1767159056271,-800.0,0.0002785,2]
[400156442,1767159056281,-800.0,0.000279,2]
[400156443,1767159056291,-675.35117753,0.00027904,2]
[400156444,1767159056301,-800.0,0.00027911,2]
[400156445,1767159056311,-160.0,0.00027911,17]
[400156446,1767159056320,-212.66299434,0.00027911,5]
[400156447,1767159056330,-184.1677213,0.00027918,30]
[400156448,1767159056340,-184.1677213,0.00027918,30]
[400156449,1767159056350,-800.0,0.0002793,2]
[400156450,1767159056360,-793.64,0.00027945,2]
[400156451,1767159056369,-3532.14,0.00027945,2]
[400156452,1767159056379,-1348.54,0.00027945,2]
[400156453,1767159056388,-726.0,0.00027985,3]
[400156454,1767159056398,-5000.0,0.00027999,14]
[400156455,1767159056407,-166.25,0.00028,7]
[400156456,1767159056417,-1533.95,0.00028,14]
[400156457,1767159056426,-800.0,0.00028014,2]
[400156458,1767159056435,-768.1590723,0.00028017,2]
[400156459,1767159056445,-2394.17213278,0.00028032,2]
[400156460,1767159056454,-800.0,0.00028068,2]
[400156461,1767159056464,-726.0,0.00028085,3]
[400156462,1767159056473,-800.0,0.00028109,2]
[400156463,1767159056482,-800.0,0.00028113,2]
[400156464,1767159056492,-800.0,0.00028129,2]
[400156465,1767159056501,-151.0,0.00028129,7]
[400156466,1767159056511,-263.107289,0.00028129,7]
[400156467,1767159056521,-151.0,0.00028129,7]
[400156468,1767159056530,-263.107289,0.00028129,7]
[400156469,1767159056540,-275.219476,0.00028129,7]
[400156470,1767159056550,-263.107289,0.00028129,7]
[400156471,1767159056559,-275.219476,0.00028129,7]
[400156472,1767159056569,-263.107289,0.00028129,7]
[400156473,1767159056579,-275.219476,0.00028129,7]
[400156474,1767159056588,-151.0,0.00028129,7]
[400156475,1767159056598,-275.219476,0.00028129,7]
[400156476,1767159056607,-307.660295,0.00028129,7]
[400156477,1767159056617,-307.660295,0.00028129,7]
[400156478,1767159056627,-307.660295,0.00028129,7]
[400156479,1767159056637,-307.660295,0.00028129,7]
[400156480,1767159056646,-151.0,0.00028129,7]
[400156481,1767159056656,-168.840754,0.00028129,7]
[400156482,1767159056666,-1046.649437,0.00028129,7]
[400156483,1767159056676,-1046.649437,0.00028129,7]
[400156484,1767159056686,-1046.649437,0.00028129,7]
[400156485,1767159056696,-1046.649437,0.00028129,7]
[400156486,1767159056705,-1328.264432,0.00028129,7]
[400156487,1767159056714,-1328.264432,0.00028129,7]
[400156488,1767159056724,-1328.264432,0.00028129,7]
[400156489,1767159056733,-414.72566,0.00028129,7]
[400156490,1767159056743,-1328.264432,0.00028129,7]
[400156491,1767159056752,-414.72566,0.00028129,7]
[400156492,1767159056762,-414.72566,0.00028129,7]
[400156493,1767159056771,-414.72566,0.00028129,7]
[400156494,1767159056780,-151.0,0.00028129,7]
[400156495,1767159056790,-151.0,0.00028129,7]
[400156496,1767159056800,-210.696924,0.00028129,7]
[400156497,1767159056809,-210.696924,0.00028129,7]
[400156498,1767159056819,-156.330499,0.00028129,7]
[400156499,1767159056829,-210.696924,0.00028129,7]
[400156500,1767159056838,-210.696924,0.00028129,7]
[400156501,1767159056848,-151.000016,0.00028129,7]
[400156502,1767159056858,-151.0,0.00028129,7]
[400156503,1767159056868,-151.0,0.00028129,7]
[400156504,1767159056877,-194.747586,0.00028129,7]
[400156505,1767159056886,-155.898305,0.00028129,7]
[400156506,1767159056895,-194.747586,0.00028129,7]
[400156507,1767159056905,-152.63705,0.00028129,7]
[400156508,1767159056915,-194.747586,0.00028129,7]
[400156509,1767159056925,-220.61404,0.00028129,7]
[400156510,1767159056934,-194.747586,0.00028129,7]
[400156511,1767159056943,-151.0,0.00028129,7]
[400156512,1767159056953,-435.404982,0.00028129,7]
[400156513,1767159056963,-307.545551,0.00028129,7]
[400156514,1767159056973,-262.904127,0.00028129,7]
[400156515,1767159056983,-307.545551,0.00028129,7]
[400156516,1767159056992,-435.404982,0.00028129,7]
[400156517,1767159057002,-262.904127,0.00028129,7]
[400156518,1767159057012,-307.545551,0.00028129,7]
[400156519,1767159057024,-435.404982,0.00028129,7]
[400156520,1767159057033,-262.904127,0.00028129,7]
[400156521,1767159057043,-307.545551,0.00028129,7]
[400156522,1767159057052,-435.404982,0.00028129,7]
[400156523,1767159057062,-262.904127,0.00028129,7]
[400156524,1767159057071,-151.0,0.00028129,7]
[400156525,1767159057080,-151.0,0.00028129,7]
[400156526,1767159057092,-151.0,0.00028129,7]
[400156527,1767159057102,-151.0,0.00028129,7]
[400156528,1767159057111,-151.0,0.00028129,7]
[400156529,1767159057122,-291.1968236,0.00028129,7]
[400156530,1767159057133,-151.0,0.00028129,7]
[400156531,1767159057143,-151.0,0.00028129,7]
[400156532,1767159057152,-151.0,0.00028129,7]
[400156533,1767159057162,-196.352498,0.00028129,7]
[400156534,1767159057172,-793.83277577,0.00028219,2]
[400156535,1767159057182,-3532.19477138,0.00028219,2]
[400156536,1767159057191,-1348.61635778,0.00028219,2]
[400156537,1767159057201,-800.0,0.00028279,2]
[400156538,1767159057210,-800.0,0.00028298,2]
[400156539,1767159057220,-5000.0,0.00028358,15]
[400156540,1767159057230,-2394.17213288,0.0002837,2]
[400156541,1767159057240,-1000.0,0.00028408,7]
[400156542,1767159057250,-186.0,0.00028427,3]
[400156543,1767159057259,-1023.54419357,0.00028438,2]
[400156544,1767159057269,-800.0,0.00028448,2]
[400156545,1767159057279,-800.0,0.0002845,2]
[400156546,1767159057288,-236.53722422,0.0002845,21]
[400156547,1767159057297,-800.0,0.00028465,2]
[400156548,1767159057307,-5000.0,0.00028474,5]
[400156549,1767159057317,-5000.0,0.00028492,2]
[400156550,1767159057326,-5000.0,0.00028492,15]
[400156551,1767159057336,-163.84512541,0.00028493,60]
[400156552,1767159057345,-186.93979994,0.00028493,60]
[400156553,1767159057355,-209.25266303,0.00028493,60]
[400156554,1767159057364,-500.0,0.00028493,60]
[400156555,1767159057373,-500.0,0.00028493,60]
[400156556,1767159057382,-150.0,0.00028493,60]
[400156557,1767159057392,-206.49040661,0.00028493,60]
[400156558,1767159057401,-500.0,0.00028493,60]
[400156559,1767159057410,-500.0,0.00028493,60]
[400156560,1767159057420,-500.0,0.00028493,60]
[400156561,1767159057430,-150.0,0.00028493,60]
[400156562,1767159057439,-185.07294294,0.00028493,60]
[400156563,1767159057449,-500.0,0.00028493,60]
[400156564,1767159057458,-152.45803495,0.00028493,60]
[400156565,1767159057468,-150.0,0.00028493,60]
[400156566,1767159057477,-202.63669157,0.00028493,60]
[400156567,1767159057486,-150.0,0.00028493,60]
[400156568,1767159057495,-169.6762874,0.00028493,60]
[400156569,1767159057505,-222.4123433,0.00028493,60]
[400156570,1767159057515,-150.0,0.00028493,60]
[400156571,1767159057525,-500.0,0.00028493,60]
[400156572,1767159057535,-150.0,0.00028493,60]
[400156573,1767159057545,-159.59435749,0.00028493,60]
[400156574,1767159057554,-150.0,0.00028493,2]
[400156575,1767159057564,-193.3811029,0.00028493,30]
[400156576,1767159057574,-193.3811029,0.00028493,30]
[400156577,1767159057584,-184.1677213,0.00028493,30]
[400156578,1767159057593,-193.3811029,0.00028493,30]
[400156579,1767159057603,-153.0,0.00028493,30]
[400156580,1767159057612,-184.1677213,0.00028493,30]
[400156581,1767159057621,-193.3811029,0.00028493,30]
[400156582,1767159057631,-153.0,0.00028493,30]
[400156583,1767159057640,-184.1677213,0.00028493,30]
[400156584,1767159057649,-193.3811029,0.00028493,30]
[400156585,1767159057659,-153.0,0.00028493,30]
[400156586,1767159057670,-184.1677213,0.00028493,30]
[400156587,1767159057679,-193.3811029,0.00028493,30]
[400156588,1767159057689,-153.0,0.00028493,30]
[400156589,1767159057699,-184.1677213,0.00028493,30]
[400156590,1767159057709,-153.0,0.00028493,30]
[400156591,1767159057719,-193.3811029,0.00028493,30]
[400156592,1767159057730,-184.1677213,0.00028493,30]
[400156593,1767159057740,-153.0,0.00028493,30]
[400156594,1767159057755,-184.1677213,0.00028493,30]
[400156595,1767159057772,-193.3811029,0.00028493,30]
[400156596,1767159057782,-184.1677213,0.00028493,30]
[400156597,1767159057792,-193.3811029,0.00028493,30]
[400156598,1767159057801,-153.0,0.00028493,30]
[400156599,1767159057810,-184.1677213,0.00028493,30]
[400156600,1767159057819,-193.3811029,0.00028493,30]
[400156601,1767159057829,-153.0,0.00028493,30]
[400156602,1767159057838,-193.3811029,0.00028493,30]
[400156603,1767159057847,-184.1677213,0.00028493,30]
[400156604,1767159057857,-153.0,0.00028493,30]
[400156605,1767159057866,-193.3811029,0.00028493,30]
[400156606,1767159057875,-184.1677213,0.00028493,30]
[400156607,1767159057884,-153.0,0.00028493,30]
[400156608,1767159057893,-193.3811029,0.00028493,30]
[400156609,1767159057903,-184.1677213,0.00028493,30]
[400156610,1767159057913,-153.0,0.00028493,30]
[400156611,1767159057923,-184.1677213,0.00028493,30]
[400156612,1767159057932,-193.3811029,0.00028493,30]
[400156613,1767159057941,-184.1677213,0.00028493,30]
[400156614,1767159057950,-153.0,0.00028493,30]
[400156615,1767159057960,-184.1677213,0.00028493,30]
[400156616,1767159057969,-184.1677213,0.00028493,30]
[400156617,1767159057978,-153.0,0.00028493,30]
[400156618,1767159057988,-184.1677213,0.00028493,30]
[400156619,1767159057997,-184.1677213,0.00028493,30]
[400156620,1767159058007,-153.0,0.00028493,30]
[400156621,1767159058017,-184.1677213,0.00028493,30]
[400156622,1767159058030,-184.1677213,0.00028493,30]
[400156623,1767159058039,-184.1677213,0.00028493,30]
[400156624,1767159058049,-184.1677213,0.00028493,30]
[400156625,1767159058058,-184.1677213,0.00028493,30]
[400156626,1767159058069,-184.1677213,0.00028493,30]
[400156627,1767159058079,-184.1677213,0.00028493,30]
[400156628,1767159058090,-184.1677213,0.00028493,30]
[400156629,1767159058100,-184.1677213,0.00028493,30]
[400156630,1767159058110,-184.1677213,0.00028493,30]
[400156631,1767159058119,-184.1677213,0.00028493,30]
[400156632,1767159058129,-184.1677213,0.00028493,30]
[400156633,1767159058138,-184.1677213,0.00028493,30]
[400156634,1767159058148,-184.1677213,0.00028493,30]
[400156635,1767159058157,-170.7208142,0.00028493,30]
[400156636,1767159058167,-151.0,0.00028494,7]
[400156637,1767159058177,-151.0,0.00028494,7]
[400156638,1767159058187,-151.0,0.00028494,7]
[400156639,1767159058196,-151.0,0.00028494,7]
[400156640,1767159058205,-151.0,0.00028494,7]
[400156641,1767159058215,-151.0,0.00028494,7]
[400156642,1767159058225,-5000.0,0.00028494,3]
[400156643,1767159058234,-346.0,0.000285,7]
[400156644,1767159058243,-346.0,0.000285,7]
[400156645,1767159058252,-152.0,0.000285,7]
[400156646,1767159058261,-166.0,0.000285,7]
[400156647,1767159058271,-152.0,0.000285,7]
[400156648,1767159058374,-166.0,0.000285,7]
[400156649,1767159058384,-346.0,0.000285,7]
[400156650,1767159058393,-346.0,0.000285,7]
[400156651,1767159058402,-166.0,0.000285,7]
[400156652,1767159058412,-152.0,0.000285,7]
[400156653,1767159058421,-152.0,0.000285,7]
[400156654,1767159058431,-346.0,0.000285,7]
[400156655,1767159058441,-166.0,0.000285,7]
[400156656,1767159058450,-166.0,0.000285,7]
[400156657,1767159058459,-298.50338672,0.000285,7]
[400156658,1767159058468,-346.0,0.000285,7]
[400156659,1767159058478,-166.0,0.000285,7]
[400156660,1767159058487,-346.0,0.000285,7]
[400156661,1767159058496,-166.0,0.000285,7]
[400156662,1767159058505,-346.0,0.000285,7]
[400156663,1767159058514,-172.0,0.000285,7]
[400156664,1767159058523,-346.0,0.000285,7]
[400156665,1767159058533,-346.0,0.000285,7]
[400156666,1767159058542,-346.0,0.000285,7]
[400156667,1767159058551,-346.0,0.000285,7]
[400156668,1767159058561,-163.0,0.000285,7]
[400156669,1767159058570,-346.0,0.000285,7]
[400156670,1767159058579,-203.09697627,0.000285,7]
[400156671,1767159058589,-346.0,0.000285,7]
[400156672,1767159058598,-151.0,0.000285,7]
[400156673,1767159058608,-346.0,0.000285,7]
[400156674,1767159058617,-151.0,0.000285,7]
[400156675,1767159058626,-151.0,0.000285,7]
[400156676,1767159058635,-346.0,0.000285,7]
[400156677,1767159058645,-346.0,0.000285,7]
[400156678,1767159058654,-151.0,0.000285,7]
[400156679,1767159058663,-335.0,0.000285,7]
[400156680,1767159058673,-346.0,0.000285,7]
[400156681,1767159058683,-151.0,0.000285,7]
[400156682,1767159058692,-335.0,0.000285,7]
[400156683,1767159058702,-335.0,0.000285,7]
[400156684,1767159058711,-151.0,0.000285,7]
[400156685,1767159058720,-346.0,0.000285,7]
[400156686,1767159058729,-151.0,0.000285,7]
[400156687,1767159058739,-335.0,0.000285,7]
[400156688,1767159058748,-346.0,0.000285,7]
[400156689,1767159058757,-151.0,0.000285,7]
[400156690,1767159058766,-346.0,0.000285,7]
[400156691,1767159058775,-335.0,0.000285,7]
[400156692,1767159058784,-151.0,0.000285,7]
[400156693,1767159058793,-346.0,0.000285,7]
[400156694,1767159058802,-346.0,0.000285,7]
[400156695,1767159058811,-184.30374693,0.000285,7]
[400156696,1767159058825,-335.0,0.000285,7]
[400156697,1767159058835,-335.0,0.000285,7]
[400156698,1767159058844,-346.0,0.000285,7]
[400156699,1767159058853,-335.0,0.000285,7]
[400156700,1767159058862,-346.0,0.000285,7]
[400156701,1767159058872,-335.0,0.000285,7]
[400156702,1767159058882,-346.0,0.000285,7]
[400156703,1767159058891,-335.0,0.000285,7]
[400156704,1767159058902,-346.0,0.000285,7]
[400156705,1767159058911,-335.0,0.000285,7]
[400156706,1767159058921,-346.0,0.000285,7]
[400156707,1767159058931,-335.0,0.000285,7]
[400156708,1767159058941,-346.0,0.000285,7]
[400156709,1767159058951,-335.0,0.000285,7]
[400156710,1767159058961,-335.0,0.000285,7]
[400156711,1767159058971,-346.0,0.000285,7]
[400156712,1767159058980,-335.0,0.000285,7]
[400156713,1767159058990,-346.0,0.000285,7]
[400156714,1767159058999,-346.0,0.000285,7]
[400156715,1767159059009,-335.0,0.000285,7]
[400156716,1767159059020,-335.0,0.000285,7]
[400156717,1767159059031,-346.0,0.000285,7]
[400156718,1767159059041,-335.0,0.000285,7]
[400156719,1767159059051,-346.0,0.000285,7]
[400156720,1767159059061,-346.0,0.000285,7]
[400156721,1767159059071,-335.0,0.000285,7]
[400156722,1767159059081,-346.0,0.000285,7]
[400156723,1767159059091,-335.0,0.000285,7]
[400156724,1767159059101,-335.0,0.000285,7]
[400156725,1767159059111,-346.0,0.000285,7]
[400156726,1767159059122,-346.0,0.000285,7]
[400156727,1767159059132,-335.0,0.000285,7]
[400156728,1767159059143,-335.0,0.000285,7]
[400156729,1767159059157,-346.0,0.000285,7]
[400156730,1767159059167,-335.0,0.000285,7]
[400156731,1767159059177,-346.0,0.000285,7]
[400156732,1767159059187,-335.0,0.000285,7]
[400156733,1767159059197,-346.0,0.000285,7]
[400156734,1767159059208,-335.0,0.000285,7]
[400156735,1767159059219,-156.5492518,0.000285,7]
[400156736,1767159059231,-335.0,0.000285,7]
[400156737,1767159059241,-335.0,0.000285,7]
[400156738,1767159059251,-335.0,0.000285,7]
[400156739,1767159059260,-352.93581086,0.000285,7]
[400156740,1767159059270,-151.0,0.000285,7]
[400156741,1767159059280,-151.0,0.000285,7]
[400156742,1767159059290,-151.0,0.000285,7]
[400156743,1767159059299,-151.0,0.000285,7]
[400156744,1767159059309,-1336.113026,0.000285,7]
[400156745,1767159059319,-1336.113026,0.000285,7]
[400156746,1767159059329,-1336.113026,0.000285,7]
[400156747,1767159059338,-295.093194,0.000285,7]
[400156748,1767159059348,-1336.113026,0.000285,7]
[400156749,1767159059358,-229.240196,0.000285,7]
[400156750,1767159059367,-171.736498,0.000285,7]
[400156751,1767159059377,-171.736498,0.000285,7]
[400156752,1767159059386,-171.736498,0.000285,7]
[400156753,1767159059396,-171.736498,0.000285,7]
[400156754,1767159059405,-947.358642,0.000285,7]
[400156755,1767159059414,-947.358642,0.000285,7]
[400156756,1767159059424,-947.358642,0.000285,7]
[400156757,1767159059433,-947.358642,0.000285,7]
[400156758,1767159059444,-151.0,0.000285,7]
[400156759,1767159059454,-151.0,0.000285,7]
[400156760,1767159059464,-151.0,0.000285,7]
[400156761,1767159059473,-151.0,0.000285,7]
[400156762,1767159059483,-151.0,0.000285,7]
[400156763,1767159059493,-539.73112263,0.000285,2]
[400156764,1767159059502,-539.73112263,0.000285,2]
[400156765,1767159059512,-183195.59207933,0.000285,7]
[400156766,1767159059522,-2000.0,0.00028571,7]
[400156767,1767159059531,-193.3811029,0.00028575,30]
[400156768,1767159059541,-160.73,0.000286,7]
[400156769,1767159059550,-500.0,0.0002863,60]
[400156770,1767159059560,-553.14948986,0.0002863,60]
[400156771,1767159059569,-150.0,0.0002863,60]
[400156772,1767159059578,-500.0,0.0002863,60]
[400156773,1767159059588,-500.0,0.0002863,60]
[400156774,1767159059598,-500.0,0.0002863,60]
[400156775,1767159059607,-208.19610497,0.0002863,60]
[400156776,1767159059617,-147.11954527,0.0002863,60]
[400156777,1767159059847,-500.0,0.00013273,2]
[400156778,1767159059858,-1435.82,0.00013698,2]
[400156779,1767159059868,-1435.82,0.00013698,2]
[400156780,1767159059877,-1435.82,0.00013698,2]
[400156781,1767159059887,-1436.03,0.00013698,2]
[400156782,1767159059897,-1000.0,0.00013821,2]
[400156783,1767159059907,-824.83546284,0.00014368,2]
[400156784,1767159059916,-264.15323111,0.00015241,2]
[400156785,1767159059926,-7914.52838144,0.00020306,2]
[400156786,1767159059935,-576.749097,0.00027397,7]
[400156787,1767159059945,-2596.936769,0.00027397,7]
[400156788,1767159059955,-576.749097,0.00027397,7]
[400156789,1767159059964,-2596.936769,0.00027397,7]
[400156790,1767159059973,-576.749097,0.00027397,7]
[400156791,1767159059983,-2596.936769,0.00027397,7]
[400156792,1767159059993,-576.749097,0.00027397,7]
[400156793,1767159060002,-2596.936769,0.00027397,7]
[400156794,1767159060012,-576.749097,0.00027397,7]
[400156795,1767159060026,-381.3638821,0.0002863,60]
[400156796,1767159060035,-180.67113101,0.0002863,60]
[400156797,1767159060045,-150.0,0.0002863,60]
[400156798,1767159060055,-150.0,0.0002863,60]
[400156799,1767159060066,-500.0,0.0002863,60]